Cogmind - Beta 16.1 @@@ ROGUE MODE // 2026.04.21 @ 00:00:53 Player: Nomad Result: Destroyed by G-34 Mercenary with Small Laser Performance ------------- Evolutions (0) 0 Regions Visited (1) 200 Robots Destroyed (5) 25 Value Destroyed (196) 196 Prototype IDs (0) 0 Alien Tech Used (0) 0 Bonus (0) 0 TOTAL SCORE: 421 Bonus ------- None Cogmind --------- Core Integrity 0/250 Matter 286/300 Energy 36/100 System Corruption 0% Temperature Hot (247) Movement Core (200) Ox3 Location -10/Materials Parts ------- > --- POWER (1) -------- (None) > --- PROPULSION (2) --- (None) > --- UTILITY (2) ------ Small Storage Unit > --- WEAPON (2) ------- Spread Laser Spread Laser > --- INVENTORY (8) ---- (None) Peak State ------------ > --- POWER ------------ Ion Engine > --- PROPULSION ------- Aluminum Leg Aluminum Leg > --- UTILITY ---------- Small Storage Unit Propulsion Shielding > --- WEAPON ----------- Assault Rifle Assault Rifle > --- INVENTORY -------- (None) [Rating: 7] Favorites ----------- Power Ion Engine Engine Ion Engine Propulsion Aluminum Leg Leg Aluminum Leg Utility Small Storage Unit Storage Small Storage Unit Protection Propulsion Shielding Weapon Assault Rifle Energy Gun Spread Laser Ballistic Gun Assault Rifle Build | -11 -10 ------- Run | Yrd Mat Slots Evolved . | . . Power . | . . Propulsion . | . . Utility . | . . Weapon . | . . Parts Attached 9 | 6 3 Power 1 | 1 . Engine 1 | 1 . Core . | . . Reactor . | . . Propulsion 2 | 2 . Treads . | . . Leg 2 | 2 . Wheel . | . . Hover . | . . Flight . | . . Utility 2 | 1 1 Device . | . . Storage 1 | 1 . Processor . | . . Hackware . | . . Protection 1 | . 1 Artifact . | . . Weapon 4 | 2 2 Energy Gun 2 | . 2 Energy Cannon . | . . Ballistic Gun 2 | 2 . Ballistic Cannon . | . . Launcher . | . . Special Weapon . | . . Impact Weapon . | . . Slashing Weapon . | . . Piercing Weapon . | . . Special Melee Weapon . | . . Unidentified Prototypes . | . . Parts Lost 6 | . 6 Power 1 | . 1 Propulsion 2 | . 2 Utility 1 | . 1 Weapon 2 | . 2 Highest Loss Streak 3 | . 3 To Critical Strikes . | . . Average Backups . | . . Power . | . . Propulsion . | . . Utility . | . . Weapon . | . . Tool/Special . | . . Unused Backups . | . . Power . | . . Propulsion . | . . Utility . | . . Weapon . | . . Tool/Special . | . . Average Slot Usage (%) 86 | . 86 Engine 10 | . 10 Leg 26 | . 26 Storage 14 | . 14 Protection 11 | . 11 Energy Gun 1 | . 1 Ballistic Gun 20 | . 20 Peak Build Rating 7 | 6 7 Average Rating 5 | 4 6 On Entrance 3 | . 6 Avg Prop Armor Cover (%) 19 | 19 . Naked Turns . | . . Heaviest Build 15 | 14 15 Greatest Support 20 | 20 20 Greatest Overweight (x) 3 | 2 3 Average Overweight (x) . | . . Largest Inventory Capacity 8 | 8 8 Average Capacity 7 | 6 8 Most Carried 3 | 3 2 Average Carried . | . . Final Capacity 8 | 8 8 Final Carried . | . . Class Distribution -------------------- 100% | Mutant Dominant Class ---------------- Mutant | -10/Materials Resources | -11 -10 ----------- Run | Yrd Mat Matter Collected 349 | 197 152 Remotely . | . . Salvage Created 194 | . 194 Parts 8 | . 8 Haulers Intercepted . | . . Recyclers Shooed 1 | . 1 Parts Field Recycled . | . . Retrieved Matter . | . . Parts Self-Destructed . | . . Prevented . | . . Parts Restored . | . . Kills | -11 -10 ------- Run | Yrd Mat Combat Hostiles Destroyed 5 | . 5 Guns 5 | . 5 Classes Destroyed 1 | . 1 Grunt 5 | . 5 Best Kill Streak 2 | . 2 Combat Bots Only 2 | . 2 Max Kills in Single Turn 1 | . 1 Gunslinging . | . . Exploded . | . . Melee . | . . Uniques/NPCs Destroyed . | . . Combat | -11 -10 -------- Run | Yrd Mat Hostile Shots Fired 121 | . 121 Missed 37 | . 37 Hits 84 | . 84 Projectile 84 | . 84 Damage Taken 966 | . 966 Core 259 | . 259 Absorbed by Shields . | . . Redirected to Shielding 52 | . 52 Core Remaining (%) 100 | 100 . Volleys Fired 26 | . 26 Largest 2 | . 2 Hottest 130 | . 130 Shots Fired 43 | . 43 Gun 43 | . 43 Cannon . | . . Launcher . | . . Special . | . . Kinetic 35 | . 35 Thermal 8 | . 8 Explosive . | . . Electromagnetic . | . . Robot Hit Streak 23 | . 23 Robot Miss Streak 3 | . 3 Penetration Max . | . . Secondary Targets 1 | . 1 Max Gunslinging Chain 1 | . 1 Shots Hit Robots 39 | . 39 Core Hits 25 | . 25 Critical Kills . | . . Critical Parts Destroyed . | . . Critical Strikes . | . . Melee Attacks . | . . Impact . | . . Slashing . | . . Piercing . | . . Sneak Attacks . | . . Combat Hostiles . | . . Follow-up Attacks . | . . Damage Inflicted 549 | . 549 Guns 546 | . 546 Cannons . | . . Explosions . | . . Melee . | . . Ramming 3 | . 3 Kinetic 390 | . 390 Thermal 156 | . 156 Explosive . | . . Electromagnetic . | . . Impact . | . . Slashing . | . . Piercing . | . . Highest Corruption . | . . Average Corruption . | . . Corruption Purged . | . . Corruption Blocked . | . . Overload Shots . | . . Overflow Damage . | . . Projectiles . | . . Explosions . | . . Melee . | . . Knockbacks . | . . Impact . | . . Kinetic . | . . Secondary . | . . Self-Inflicted Damage . | . . Shots . | . . Rammed . | . . Targets Rammed 1 | . 1 Kicked 1 | . 1 Crushed . | . . Highest Temperature 241 | . 241 Average Temperature 94 | . 94 Received Heat Transfer 528 | . 528 Siege Activations . | . . Martial Activations . | . . Shielding Activations . | . . Robots Disrupted . | . . Combat Hostiles . | . . Robots Corrupted . | . . Combat Hostiles . | . . Parts Fried . | . . Impact Corruptions . | . . Robots Melted . | . . Combat Hostiles . | . . Parts Melted . | . . Heat Transferred 190 | . 190 Parts Sabotaged . | . . Parts Stolen . | . . Parts Stripped . | . . Power Chain Reactions . | . . Alert | -11 -10 ------- Run | Yrd Mat Maximum Alert Level . | . . Low Security (%) 100 | 100 100 Level 1 . | . . Level 2 . | . . Level 3 . | . . Level 4 . | . . Level 5 . | . . High Security . | . . Max Security . | . . Peak Influence 66 | . 66 Initial . | . . Average 8 | . 10 Influence Increases 185 | . 185 Destroy 0b10 Robot/C 100 | . 100 Destroy Leader 30 | . 30 Successful Hack 9 | . 9 Destroy Structure 1 | . 1 Lose Combat Pursuer 45 | . 45 Influence Decreases 143 | . 143 Time Decay 93 | . 93 Lost Part 50 | . 50 Squads Dispatched 3 | . 3 Investigation . | . . Extermination . | . . Reinforcement 3 | . 3 Assault . | . . Garrison . | . . Intercept . | . . Searches Triggered . | . . Construction Impeded . | . . Haulers Reinforced . | . . Active Scanning Responses . | . . Cargo Convoy Interrupts . | . . Stealth | -11 -10 --------- Run | Yrd Mat Distress Signals 2 | . 2 Communications Jammed . | . . Distress Signals . | . . Times Spotted 17 | . 17 Peak Tracking Total 9 | . 9 Tactical Retreats 2 | . 2 Traps | -11 -10 ------- Run | Yrd Mat Traps Triggered . | . . Indirectly . | . . Trap Hack Attempts . | . . Triggered . | . . Disarmed . | . . Reprogrammed . | . . Reused . | . . Traps Extracted . | . . Installed . | . . Triggered . | . . Machines | -11 -10 ---------- Run | Yrd Mat Machines Disabled . | . . Max in Single Turn . | . . Machines Repaired . | . . Machines Dismantled . | . . Machines Sabotaged . | . . Overloaded Fab Kills . | . . Hacking | -11 -10 --------- Run | Yrd Mat Machines Accessed 2 | . 2 Terminals 2 | . 2 Fabricators . | . . Repair Stations . | . . Recycling Units . | . . Scanalyzers . | . . Garrison Access . | . . Total Hacks 7 | . 7 Successful 4 | . 4 Failed 3 | . 3 Catastrophic . | . . Database Lockouts . | . . Manual . | . . Terminals 7 | . 7 Fabricators . | . . Repair Stations . | . . Recycling Units . | . . Scanalyzers . | . . Garrison Access . | . . Terminal Hacks 4 | . 4 Branch Access Points 1 | . 1 Locate Traps 1 | . 1 Maintenance Status 1 | . 1 Zone Layout 1 | . 1 Fabricator Hacks . | . . Repair Station Hacks . | . . Recycling Unit Hacks . | . . Scanalyzer . | . . Garrison Access Hacks . | . . Unauthorized Hacks . | . . Terminals . | . . Fabricators . | . . Repair Stations . | . . Recycling Units . | . . Scanalyzers . | . . Garrison Access . | . . Data Cores Recovered . | . . Used . | . . Hacking Detections . | . . Full Trace Events . | . . Feedback Events . | . . Feedback Blocked . | . . Robot Schematics Acquired . | . . Robots Built . | . . Authchips . | . . Time . | . . Total Robot Build Rating . | . . Part Schematics Acquired . | . . Parts Built . | . . Authchips . | . . Time . | . . Total Part Build Rating . | . . Part Studies Acquired . | . . Parts Repaired . | . . Time . | . . Parts Recycled . | . . Recycled Matter . | . . Retrieved Matter . | . . Retrieved Components . | . . Parts Scanalyzed . | . . Part Schematics Acquired . | . . Parts Damaged . | . . Bothacking | -11 -10 ------------ Run | Yrd Mat Used RIF Installer . | . . Robots Hacked . | . . Non-combat . | . . Combat . | . . Robot Hacks Applied . | . . Relay Couplers Released . | . . Fabnet Peak Effective % . | . . Robots Rewired . | . . Allies Hacked . | . . Hacks Repelled . | . . Allies | -11 -10 -------- Run | Yrd Mat Total Allies . | . . Largest Group . | . . Highest-Rated Group . | . . Highest-Rated Ally . | . . Total Orders . | . . Ally Attacks . | . . Total Damage . | . . Kills . | . . Allies Corrupted . | . . Allies Melted . | . . Intel | -11 -10 ------- Run | Yrd Mat Active Infowar (turns) . | . . Robot Analysis Total . | . . Derelict Logs Recovered . | . . Drone Launches . | . . Drone Recoveries . | . . Exploration | -11 -10 ------------- Run | Yrd Mat Turns Passed 467 | 58 409 Spaces Moved 253 | 42 211 Core 17 | 16 1 Treads . | . . Legs 236 | 26 210 Wheels . | . . Hover . | . . Flight . | . . Fastest Speed 50 | 50 120 Average Speed 120 | 112 122 Slowest Speed 200 | 150 200 Overloaded Moves . | . . Propulsion Burnouts . | . . Robots Hopped . | . . Potential Cave-ins . | . . Cave-ins Triggered . | . . Exploration Rate (%) 24 | 3 45 Regions Visited 1 Branch Regions . Pre-discovered Areas . | . . Known Exits Taken . | . . Unknown Exits Taken 1 | 1 . Scrap Searched . | . . Spaces Dug . | . . Terrain Destroyed . | . . Melee . | . . Projectile . | . . AOE . | . . Terrain Rammed . | . . Walls Destroyed . | . . Machines Disabled . | . . Actions | -11 -10 --------- Run | Yrd Mat Total 372 | 53 319 Wait 75 | . 75 Move 252 | 41 211 Hop . | . . Pick Up 9 | 6 3 Fast Attach . | . . Attach 9 | 6 3 Detach . | . . Swap . | . . Drop . | . . Fire 26 | . 26 Melee . | . . Ram . | . . Kick 1 | . 1 Crush . | . . Escape Stasis . | . . Rewire . | . . Trap . | . . Miscellaneous . | . . Route ------- -11/Scrapyard -10/Materials (discovered 2 exits: *Min x2) History --------- Turn | Location | Event 6 | -11/Scrapyard | Discovered new exit (range 16) 59 | -11/Scrapyard | Entered Materials 142 | -10/Materials | Identified exit to Mines 300 | -10/Materials | Build established: Mutant 398 | -10/Materials | Lost 3 parts (1p2w) 430 | -10/Materials | Core integrity fell below 50% 458 | -10/Materials | Core integrity fell below 20% 468 | -10/Materials | Destroyed by G-34 Mercenary with Small Laser Last Messages --------------- Assault Rifle destroyed. K-01 Serf collects debris. Ion Engine destroyed. Assault Rifle destroyed. Kicked G-34 Mercenary out of the way. O-16 Technician: "IFF HANDSHAKE FAILED. SECURING TERMINAL." ALERT: Hostiles spotted, dispatching reinforcements to Terminal M003. Aluminum Leg destroyed. Acquired Spread Laser. Propulsion Shielding destroyed. Aluminum Leg destroyed. G-34 Mercenary destroyed. G-47 Trooper destroyed. R-06 Scavenger collects Particle Gun. G-34 Mercenary destroyed. Switching to secondary target: G-34 Mercenary. Acquired 32 matter. R-06 Scavenger collects Sml. Laser. Map ----- +----------------------------------------------------+ | ?????????????????????????????????? | | ??????????????????????????????????# | | ??????????????????????????????????# ????# | | ??????????????????????????? ???## ##?##### | | ??????????????????????????# #??# ""?# | | ??????????????????????????# #??# ?# | | ??????????????????????????+ #??# |?# | | ??????????????????????????# #??# > ""# ! | | ??????????????????????????# #??# |?# | | ??????????????????????????# #??# ?# | | ??????????????????????????# #??# ""?# | | ????????????#?????????????# #???# #??####/ | | ????????????# ????????????# ##### ##### | | ????????????+ ???????????# | | ????????????# ???????????# | | ????????????# ??????????# | | ????????????# ########### ####+###### | | ????????????# # #### | | ????????????# / #??# | | ????????????# "" ### """ #??# | | ??????????? + "Y ##########?# """ #??# | | ????????????# "" #??????????# """ #??# | | ????????????# #??????????# """ #??# | | ?????????#### u #######????# """ #??# | | ?????# r g r= #????# ???# | | ?????# g%@= [[#????# ???# | | ?????? g![ !!#????##########??# | | ?????? #####+######### !!#???????########## | | ???????????????????????# !!#???????# # | | ???????????????????????# !!#???????# """ # | | ???????????????????????#####???????# """ # | | ???????????????????????????????????# """ # | | ???????????????????????????????????# # | | ???????????????????????????????????# + | | ???????????????????????????????????# ! ] # | | ???????????????????????????????????# !! # | | ???????????????????????????????????# !! # | | ???????????????????????????????????########## | | ???????????????????????????????############## | | ?????????????????????????# ! + ^ | | ?????????????????????????? T ########### | | ?????????????????????????????????????????????? | | ?????????????????????????????????????????????? | | ?????????????????????????????????????????????? | | ?????????????????????????????????????????????? | | | | | | | | | | | +----------------------------------------------------+ Best States ------------- Heat Dissipation 25 Energy Generation 10 Energy Capacity 250 Matter Stores 281 Matter Capacity 300 Sight Range 16 Terrain Scan Density 10 Propulsion Shielding 33 Evasion (%) 55 Item Schematics ----------------- None Robot Schematics ------------------ None Fabricated ------------ Nothing Repaired ---------- Nothing Studied --------- None Alien Tech Used ----------------- None Achievements -------------- None Challenges ------------ None Game ------ Seed DisintegrationPlatingFlamer Manual? 0 Play Time 00:07:53 Cumulative 6.1 hours Start 2026.04.20 @ 23:56:33 End 2026.04.21 @ 00:00:53 Sessions 1 Manual Loads 0 Difficulty Rogue Special Mode None Game No. 21 Rogue 21 Adventurer 0 Explorer 0 Win Type - Total 0 Types 0/0/0/0/0/0/0/0/0/0 Lore% 7 Gallery% 10 Achievement% 9 Wizard Run 0 Options --------- Layout 1 ASCII 0 Keyboard 0 Movement Numpad Keybinds 0 Fullscreen 1 Font 32/SmallcapsGlow Map View 50x35 Zoom Use 0% Tactical HUD 0 Map Filters NONE Filters NONE Steam 1 RUN: cef4d120-be56-4a94-826a-de602bbc2ea5